Cogmind - Beta 9.4 @@@ ROGUE MODE // 2020.03.17 @ 15:44:05 Player: Terminus Result: Destroyed by S-27 Virus with Autogun Performance ------------- Evolutions (3) 1500 Regions Visited (12) 2400 Robots Destroyed (196) 980 Value Destroyed (5176) 5176 Prototype IDs (5) 100 Alien Tech Used (0) 0 Bonus (1167) 1167 TOTAL SCORE: 11323 Bonus ------- High Alert Combat Kills 454 Follower Combat Kills 775 Friendly Fire -62 Cogmind --------- Core Integrity 0/700 Matter 296/300 Energy 290/290 System Corruption 10% Temperature Cool (0) Movement Walking (240) Ox4 Location -7/Lower Caves Parts ------- > --- POWER (1) -------- Improved Deuterium Engine > --- PROPULSION (3) --- Aluminum Leg Carbon-fiber Leg > --- UTILITY (7) ------ Improved Heat Sink Improved Cooling System High-capacity Storage Unit High-capacity Storage Unit High-capacity Storage Unit Advanced Signal Interpreter Advanced Targeting Computer > --- WEAPON (2) ------- Great Axe > --- INVENTORY (28) --- Light Nuclear Core Improved Deuterium Engine Aluminum Leg Improved Heat Sink Improved Cooling System Advanced Targeting Computer Advanced Particle Charger Layered Light Armor Plating Damper Plating Hacking Suite Lightning Gun Heavy Particle Gun Light EM Pulse Cannon Improved EM Pulse Cannon Plasma Cutter Peak State ------------ > --- POWER ------------ Antimatter Reactor > --- PROPULSION ------- Improved Titanium Leg Improved Titanium Leg Improved Titanium Leg > --- UTILITY ---------- Advanced Cooling System High-capacity Storage Unit High-capacity Storage Unit High-capacity Storage Unit Advanced Signal Interpreter Improved Powered Armor Hacking Suite > --- WEAPON ----------- Lightning Gun Lightning Gun > --- INVENTORY -------- Improved Ion Engine Micro Nuclear Core Improved Carbon-fiber Leg Improved Cooling System Improved Cooling System Advanced Sensor Array Advanced Targeting Computer Advanced Targeting Computer Advanced Targeting Computer Advanced Particle Charger Improved Medium Armor Plating Damper Plating Hacking Suite Lightning Gun Heavy Particle Gun Light EM Pulse Cannon Improved EM Pulse Cannon Heavy Ion Cannon Cooled Plasma Cannon Plasma Cutter Great Axe [Rating: 57] Favorites ----------- Power Improved Ion Engine Engine Improved Ion Engine Power Core Light Nuclear Core Reactor Antimatter Reactor Propulsion Improved Titanium Leg Leg Improved Titanium Leg Utility High-capacity Storage Unit Device Improved Heat Sink Storage High-capacity Storage Unit Processor Advanced Signal Interpreter Hackware Hacking Suite Protection Improved Light Armor Plating Weapon Advanced Beam Cannon Energy Gun Heavy EM Pulse Gun Energy Cannon Advanced Beam Cannon Ballistic Gun Autogun Launcher Rocket Launcher Slashing Weapon Great Axe Build | -11 -10 -10 -9 -9 -9 -8 -8 -7 -7 -7 -7 -7 ------- Run | Scr Mat Min Mat Min Exi Min Mat Fac Was Fac Low Low Slots Evolved 6 | . . . 2 . . . 2 2 . . . . Power . | . . . . . . . . . . . . . Propulsion 1 | . . . . . . . 1 . . . . . Utility 5 | . . . 2 . . . 1 2 . . . . Weapon . | . . . . . . . . . . . . . Parts Attached 174 | 7 16 . 19 20 . 10 28 12 7 35 11 9 Power 19 | 1 2 . 1 1 . . 2 1 1 5 1 4 Engine 12 | 1 2 . 1 1 . . 2 . . 2 1 2 Core 4 | . . . . . . . . 1 . 1 . 2 Reactor 3 | . . . . . . . . . 1 2 . . Propulsion 36 | 2 4 . 7 5 . . 6 . 2 6 2 2 Treads . | . . . . . . . . . . . . . Leg 36 | 2 4 . 7 5 . . 6 . 2 6 2 2 Wheel . | . . . . . . . . . . . . . Hover . | . . . . . . . . . . . . . Flight . | . . . . . . . . . . . . . Utility 39 | 2 2 . 3 1 . 1 7 5 4 9 3 2 Device 16 | . . . 1 1 . 1 1 1 4 4 1 2 Storage 11 | 2 2 . 1 . . . 4 1 . 1 . . Processor 3 | . . . . . . . . 1 . 2 . . Hackware 2 | . . . . . . . . 2 . . . . Protection 7 | . . . 1 . . . 2 . . 2 2 . Artifact . | . . . . . . . . . . . . . Weapon 80 | 2 8 . 8 13 . 9 13 6 . 15 5 1 Energy Gun 27 | 2 5 . 1 8 . . 4 3 . 2 2 . Energy Cannon 34 | . . . 5 3 . 6 6 2 . 9 2 1 Ballistic Gun 3 | . 3 . . . . . . . . . . . Ballistic Cannon . | . . . . . . . . . . . . . Launcher 12 | . . . 2 2 . 3 2 . . 3 . . Special Weapon . | . . . . . . . . . . . . . Impact Weapon . | . . . . . . . . . . . . . Slashing Weapon 4 | . . . . . . . 1 1 . 1 1 . Piercing Weapon . | . . . . . . . . . . . . . Special Melee Weapon . | . . . . . . . . . . . . . Unidentified Prototypes 4 | . . . 2 . . . 1 1 . . . . Parts Lost 47 | . 3 . 1 6 . 3 7 . . 14 5 8 Power 9 | . . . . 1 . . 1 . . 3 1 3 Propulsion 10 | . . . 1 1 . . 1 . . 3 2 2 Utility 10 | . . . . 1 . . 2 . . 4 1 2 Weapon 18 | . 3 . . 3 . 3 3 . . 4 1 1 Highest Loss Streak 10 | . 2 . 1 3 . 1 2 . . 10 4 4 Average Slot Usage (%) 99 | . 99 100 100 99 100 99 99 99 99 99 99 96 Engine 8 | . 14 14 11 11 11 11 8 5 . . 6 4 Reactor 1 | . . . . . . . . . 6 6 . . Leg 23 | . 28 28 22 22 22 22 26 23 23 22 22 21 Device 7 | . . . 8 10 11 11 9 7 6 6 7 12 Storage 27 | . 28 28 33 33 33 33 26 22 23 23 23 23 Processor 3 | . . . . . . . . 7 7 7 15 15 Hackware 3 | . . . . . . . . 14 15 12 . . Protection 2 | . . . 2 . . . 8 . . 1 7 . Energy Gun 4 | . 19 . . 15 22 4 3 6 . . . . Energy Cannon 9 | . . . 16 6 . 15 13 6 7 8 10 6 Ballistic Gun 3 | . 8 28 5 . . . . . . . . . Slashing Weapon 1 | . . . . . . . . . 7 4 3 7 Naked Turns . | . . . . . . . . . . . . . Heaviest Build 134 | 15 61 61 84 80 78 80 100 96 105 134 121 121 Greatest Support 60 | 20 20 20 20 40 40 40 60 60 60 60 48 45 Greatest Overweight (x) 5 | 2 3 3 4 3 1 1 1 1 1 5 3 4 Average Overweight (x) 1 | . . 3 3 1 1 1 1 1 1 1 2 2 Largest Inventory Capacity 28 | 8 18 18 24 24 24 24 26 26 26 28 28 28 Average Capacity 23 | 6 12 18 24 24 24 24 22 25 26 26 28 28 Most Carried 27 | 1 18 18 24 24 21 22 24 24 26 27 20 17 Average Carried 20 | . 9 18 22 21 21 20 22 22 25 25 16 15 Final Capacity 28 | 8 18 18 24 24 24 24 26 26 26 28 28 28 Final Carried 25 | 1 18 18 24 21 21 20 22 24 25 20 16 17 Class Distribution -------------------- 83% | Hauler-Mutant 16% | Mutant Dominant Class ---------------- Mutant | -10/Materials Mutant | -10/Mines Hauler-Mutant | -9/Materials Hauler-Mutant | -9/Mines Hauler-Mutant | -9/Exiles Hauler-Mutant | -8/Mines Hauler-Mutant | -8/Materials Hauler-Mutant | -7/Factory Hauler-Mutant | -7/Waste Hauler-Mutant | -7/Factory Hauler-Mutant | -7/Lower Caves Hauler-Mutant | -7/Lower Caves Resources | -11 -10 -10 -9 -9 -9 -8 -8 -7 -7 -7 -7 -7 ----------- Run | Scr Mat Min Mat Min Exi Min Mat Fac Was Fac Low Low Matter Collected 2584 | 270 247 80 382 224 . 217 288 75 115 385 172 129 Remotely . | . . . . . . . . . . . . . Salvage Created 7128 | 99 926 71 1386 526 . 548 1423 70 274 1109 276 420 Parts 362 | 2 53 8 109 19 . 25 66 4 5 46 8 17 Haulers Intercepted 12 | . 2 . 6 . . . 3 . . 1 . . Recyclers Shooed 3 | . 2 . . . . . . . . 1 . . Parts Field Recycled . | . . . . . . . . . . . . . Retrieved Matter . | . . . . . . . . . . . . . Parts Self-Destructed 27 | . . . . . . . . . . . 7 20 Prevented 2 | . . . . . . . . . . . 2 . Kills | -11 -10 -10 -9 -9 -9 -8 -8 -7 -7 -7 -7 -7 ------- Run | Scr Mat Min Mat Min Exi Min Mat Fac Was Fac Low Low Combat Hostiles Destroyed 135 | . 13 4 30 15 . 14 21 . . 22 7 9 Melee 8 | . . . . . . . 1 . . 3 . 4 Guns 33 | . 8 4 6 6 . . 4 . . 3 2 . Cannons 53 | . . . 16 3 . 5 15 . . 7 2 5 AOE 37 | . 5 . 8 6 . 9 1 . . 6 2 . Classes Destroyed 18 | 1 7 . 3 1 . . 2 . . 3 1 . Worker 11 | . . . 3 1 . 3 3 1 . . . . Builder 4 | . 2 . 1 . . . . . . 1 . . Tunneler 3 | . 1 1 1 . . . . . . . . . Hauler 12 | . 2 . 6 . . . 3 . . 1 . . Recycler 10 | 1 3 . . 1 . . 3 1 . 1 . . Minesweeper 1 | . . . . . . . . . . . 1 . Mechanic 1 | . . . . . . . . . . 1 . . Operator 4 | . 2 . 1 . . . 1 . . . . . Watcher 14 | . 2 . 5 . . . 3 . . 4 . . Swarmer 42 | . 3 4 13 4 . . 5 . . 4 4 5 Grunt 58 | . 10 . 9 5 . 12 7 . . 11 2 2 Brawler 8 | . . . 1 1 . 2 . . . 3 . 1 Duelist 2 | . . . . . . . 2 . . . . . Protector 1 | . . . . . . . . . . 1 . . Sentry 15 | . . . 7 . . . 6 . . 1 1 . Hunter 2 | . . . . . . . 1 . . . . 1 Programmer 2 | . . . . . . . . . . 2 . . Packrat 1 | . . . . . . . . . . . . 1 Assembled 4 | . . . . 4 . . . . . . . . Best Kill Streak 7 | 1 3 2 6 4 . 4 6 2 . 7 3 3 Combat Bots Only 6 | . 3 2 4 4 . 3 4 . . 6 3 3 Max Kills in Single Turn 5 | 1 3 1 5 3 . 3 1 1 . 2 1 1 Gunslinging . | . . . . . . . . . . . . . Exploded 4 | . 3 . 4 3 . 3 1 . . 1 1 . Melee 1 | . . . . . . . 1 . . 1 . 1 Uniques/NPCs Destroyed 1 | . . . . 1 . . . . . . . . YI-UF0 (-9/Mines) Combat | -11 -10 -10 -9 -9 -9 -8 -8 -7 -7 -7 -7 -7 -------- Run | Scr Mat Min Mat Min Exi Min Mat Fac Was Fac Low Low Damage Taken 7415 | . 548 48 535 1107 . 415 1044 . . 2456 683 579 Core 1177 | . 93 6 90 92 . 32 161 . . 405 183 115 Absorbed by Shields . | . . . . . . . . . . . . . Core Remaining (%) 69 | 100 . 60 . . . 46 70 . . . . . Volleys Fired 434 | 2 58 10 71 48 . 26 97 . 7 85 14 16 Largest 2 | 2 2 2 2 2 . 2 2 . 1 2 2 1 Hottest 145 | 80 80 46 136 136 . 136 136 . 56 145 125 105 Shots Fired 741 | 4 116 20 138 88 . 37 190 . 7 102 23 16 Gun 331 | 4 116 20 40 53 . 2 47 . . 38 11 . Cannon 378 | . . . 95 31 . 23 140 . 7 54 12 16 Launcher 32 | . . . 3 4 . 12 3 . . 10 . . Special . | . . . . . . . . . . . . . Kinetic 87 | . 27 20 40 . . . . . . . . . Thermal 365 | . . . 95 31 . 23 161 . . 33 7 15 Explosive 32 | . . . 3 4 . 12 3 . . 10 . . Electromagnetic 257 | 4 89 . . 53 . 2 26 . 7 59 16 1 Robot Hit Streak 18 | 3 10 7 12 13 . 3 10 . 7 18 8 5 Robot Miss Streak 7 | . 3 1 3 5 . 4 7 . 1 4 2 2 Penetration Max . | . . . . . . . . . . . . . Secondary Targets 4 | . 1 1 2 . . . . . . . . . Max Gunslinging Chain 1 | . 1 1 1 . . . . . . . . . Shots Hit Robots 460 | 3 74 13 86 50 . 19 101 2 6 80 15 11 Core Hits 292 | 1 38 8 48 28 . 34 50 2 1 64 8 10 Critical Hits 19 | . . 1 7 1 . 3 5 . . 1 . 1 Critical Kills 9 | . . 1 3 1 . 1 2 . . . . 1 Critical Parts Destroyed 9 | . . . 4 . . 2 2 . . 1 . . Melee Attacks 54 | . . . . . . . 4 3 . 23 14 10 Impact . | . . . . . . . . . . . . . Slashing 54 | . . . . . . . 4 3 . 23 14 10 Piercing . | . . . . . . . . . . . . . Sneak Attacks 7 | . . . . . . . . 2 . 4 1 . Combat Hostiles . | . . . . . . . . . . . . . Follow-up Attacks . | . . . . . . . . . . . . . Damage Inflicted 14393 | 41 1575 229 2220 1337 . 1438 2304 257 135 3524 752 581 Guns 3106 | 41 1128 229 363 407 . . 379 . . 447 112 . Cannons 5132 | . . . 1250 413 . 224 1573 . 135 983 186 368 Explosions 4734 | . 447 . 607 517 . 1210 243 . . 1392 318 . Melee 1417 | . . . . . . . 109 257 . 702 136 213 Ramming 4 | . . . . . . 4 . . . . . . Kinetic 818 | . 226 229 363 . . . . . . . . . Thermal 5386 | . 447 . 1250 437 . 224 1801 . . 582 314 331 Explosive 3720 | . . . 607 493 . 1210 243 . . 1167 . . Electromagnetic 3048 | 41 902 . . 407 . . 151 . 135 1073 302 37 Impact . | . . . . . . . . . . . . . Slashing 1417 | . . . . . . . 109 257 . 702 136 213 Piercing . | . . . . . . . . . . . . . Highest Corruption 10 | . . . 1 1 1 1 . . . 10 10 10 Average Corruption 3 | . . . 1 1 1 1 . . . 3 10 10 Corruption Purged . | . . . . . . . . . . . . . Effects 129 | . . . 3 9 1 9 . . . 18 53 36 Message Errors 31 | . . . 1 5 . 3 . . . 7 11 4 Matter Fused 23 | . . . . . . . . . . . 12 11 Heat Flow Errors 10 | . . . . . . . . . . . 5 5 Energy Discharges 15 | . . . . 2 1 4 . . . 2 6 . Parts Rejected 1 | . . . . . . . . . . . 1 . Data Loss (minor) 11 | . . . 1 1 . 1 . . . 1 4 3 Data Loss (major) 3 | . . . . . . . . . . . . 3 Misfires 3 | . . . . . . . . . . . 1 2 Alerts 4 | . . . . . . . . . . 1 2 1 Misdirections 9 | . . . . . . . . . . 1 6 2 Targeting Errors 17 | . . . 1 1 . 1 . . . 6 5 3 Weapon Failures 2 | . . . . . . . . . . . . 2 Overload Shots 4 | . . . . . . . . . . . . 4 Overflow Damage 383 | . 9 . 31 22 . 11 37 . . 70 203 . Projectiles 59 | . . . 12 17 . . 13 . . . 17 . Explosions 148 | . 9 . 19 5 . 11 24 . . 23 57 . Melee 176 | . . . . . . . . . . 47 129 . Knockbacks . | . . . . . . . . . . . . . Impact . | . . . . . . . . . . . . . Kinetic . | . . . . . . . . . . . . . Secondary . | . . . . . . . . . . . . . Self-Inflicted Damage 241 | . 130 . 17 27 . . . . . 51 16 . Shots 9 | . 4 . 1 1 . . . . . 2 1 . Rammed . | . . . . . . . . . . . . . Targets Rammed 1 | . . . . . . 1 . . . . . . Kicked 1 | . . . . . . 1 . . . . . . Crushed . | . . . . . . . . . . . . . Highest Temperature 318 | 36 164 34 141 318 . 99 315 . 24 270 238 243 Average Temperature 62 | 20 52 9 34 128 . 41 70 . 12 76 81 84 Received Heat Transfer 1866 | . 234 18 135 198 . 225 342 . . 555 132 27 Effects 4 | . . . . 1 . . . . . 3 . . Interference 3 | . . . . . . . . . . 3 . . Damage (minor) 1 | . . . . 1 . . . . . . . . Siege Activations . | . . . . . . . . . . . . . Robots Corrupted 6 | . 1 . . . . . . . 1 3 1 . Combat Hostiles 5 | . . . . . . . . . 1 3 1 . Parts Fried 10 | . 3 . . . . . 1 . 1 4 1 . Impact Corruptions . | . . . . . . . . . . . . . Robots Melted . | . . . . . . . . . . . . . Combat Hostiles . | . . . . . . . . . . . . . Parts Melted 14 | . 1 . 2 1 . . 7 . . 2 1 . Heat Transferred 8894 | . 500 . 2257 790 . 407 3293 . . 829 398 420 Parts Sabotaged . | . . . . . . . . . . . . . Parts Stolen . | . . . . . . . . . . . . . Parts Stripped . | . . . . . . . . . . . . . Power Chain Reactions 11 | . 7 . . 1 . . . . . 1 2 . Missiles Intercepted . | . . . . . . . . . . . . . Alert | -11 -10 -10 -9 -9 -9 -8 -8 -7 -7 -7 -7 -7 ------- Run | Scr Mat Min Mat Min Exi Min Mat Fac Was Fac Low Low Peak Influence 1020 | 5 247 145 484 208 . 113 437 195 3 1020 . . Average Influence 166 | 2 116 58 273 83 . 49 186 144 1 371 . . Maximum Alert Level 3 | . 1 . 2 1 . . 2 . . 3 . . Low Security (%) 71 | 100 95 100 32 92 . 100 59 100 100 34 . . Level 1 17 | . 4 . 40 7 . . 34 . . 33 . . Level 2 6 | . . . 26 . . . 6 . . 5 . . Level 3 4 | . . . . . . . . . . 26 . . Level 4 . | . . . . . . . . . . . . . Level 5 . | . . . . . . . . . . . . . High Security . | . . . . . . . . . . . . . Max Security . | . . . . . . . . . . . . . Squads Dispatched 24 | . 3 . 5 . . . 3 . . 13 . . Investigation 8 | . 2 . 2 . . . 1 . . 3 . . Extermination 3 | . . . . . . . . . . 3 . . Reinforcement 10 | . 1 . 3 . . . 2 . . 4 . . Assault 3 | . . . . . . . . . . 3 . . Garrison . | . . . . . . . . . . . . . Intercept . | . . . . . . . . . . . . . Construction Impeded 2 | . . . . . . . . . . 2 . . Haulers Reinforced . | . . . . . . . . . . . . . Stealth | -11 -10 -10 -9 -9 -9 -8 -8 -7 -7 -7 -7 -7 --------- Run | Scr Mat Min Mat Min Exi Min Mat Fac Was Fac Low Low Distress Signals 4 | . . . 2 . . . 1 . . 1 . . Communications Jammed . | . . . . . . . . . . . . . Distress Signals . | . . . . . . . . . . . . . Times Spotted 225 | . 27 5 47 17 . 16 45 . . 46 9 13 Peak Tracking Total 10 | . 3 3 4 4 . 3 8 . . 10 4 4 Tactical Retreats 22 | . 3 . . 2 . 2 9 . . 5 1 . Traps | -11 -10 -10 -9 -9 -9 -8 -8 -7 -7 -7 -7 -7 ------- Run | Scr Mat Min Mat Min Exi Min Mat Fac Was Fac Low Low Traps Triggered 7 | . . . 3 . . . . 1 . 3 . . Indirectly . | . . . . . . . . . . . . . Trap Hack Attempts . | . . . . . . . . . . . . . Triggered . | . . . . . . . . . . . . . Disarmed . | . . . . . . . . . . . . . Reprogrammed . | . . . . . . . . . . . . . Reused 1 | . . . . . . . . . . . 1 . Traps Extracted . | . . . . . . . . . . . . . Installed 2 | . . . . . . . . . . . 2 . Triggered 2 | . . . . . . . . . . . 2 . Machines | -11 -10 -10 -9 -9 -9 -8 -8 -7 -7 -7 -7 -7 ---------- Run | Scr Mat Min Mat Min Exi Min Mat Fac Was Fac Low Low Machines Disabled 15 | . 1 . 4 1 . . 6 . . 3 . . Max in Single Turn 1 | . 1 . 1 1 . . 1 . . 1 . . Machines Sabotaged . | . . . . . . . . . . . . . Garrisons Compromised . | . . . . . . . . . . . . . Overloaded Fab Kills . | . . . . . . . . . . . . . Fab Network Shutdowns 1 | . . . . . . . . . . 1 . . Hacking | -11 -10 -10 -9 -9 -9 -8 -8 -7 -7 -7 -7 -7 --------- Run | Scr Mat Min Mat Min Exi Min Mat Fac Was Fac Low Low Machines Accessed 35 | . 7 1 7 . 1 . 9 1 . 9 . . Terminals 26 | . 5 1 7 . . . 8 . . 5 . . Fabricators 3 | . . . . . . . . . . 3 . . Repair Stations 2 | . . . . . . . . 1 . 1 . . Recycling Units 3 | . 2 . . . . . 1 . . . . . Scanalyzers . | . . . . . . . . . . . . . Garrison Access . | . . . . . . . . . . . . . Total Hacks 119 | . 16 3 26 . 23 . 21 2 . 28 . . Successful 84 | . 6 3 15 . 23 . 12 2 . 23 . . Failed 35 | . 10 . 11 . . . 9 . . 5 . . Catastrophic 3 | . 2 . . . . . 1 . . . . . Database Lockouts . | . . . . . . . . . . . . . Manual 79 | . 16 3 26 . . . 19 . . 15 . . Terminals 79 | . 14 3 26 . . . 20 . . 16 . . Fabricators 9 | . . . . . . . . . . 9 . . Repair Stations 5 | . . . . . . . . 2 . 3 . . Recycling Units 3 | . 2 . . . . . 1 . . . . . Scanalyzers . | . . . . . . . . . . . . . Garrison Access . | . . . . . . . . . . . . . Terminal Hacks 50 | . 2 2 9 . 23 . 5 . . 9 . . Record 23 | . . . . . 23 . . . . . . . Part Schematic 3 | . . . . . . . 1 . . 2 . . Branch Access Points 1 | . . . . . . . . . . 1 . . Terminal Index 1 | . . . . . . . . . . 1 . . Fabricator Index 1 | . . . . . . . . . . 1 . . Alert Level 6 | . . 1 3 . . . 1 . . 1 . . Unreport Threat 2 | . . . 1 . . . . . . 1 . . Recall Reinforcements 1 | . . . 1 . . . . . . . . . Hauler Manifests 1 | . . . . . . . . . . 1 . . Zone Layout 11 | . 2 1 4 . . . 3 . . 1 . . Fabricator Hacks 8 | . . . . . . . . . . 8 . . Load Schematic 4 | . . . . . . . . . . 4 . . Build 4 | . . . . . . . . . . 4 . . Repair Station Hacks 4 | . . . . . . . . 2 . 2 . . Scan Component 2 | . . . . . . . . 1 . 1 . . Repair 2 | . . . . . . . . 1 . 1 . . Recycling Unit Hacks . | . . . . . . . . . . . . . Scanalyzer . | . . . . . . . . . . . . . Garrison Access Hacks . | . . . . . . . . . . . . . Unauthorized Hacks 57 | . 15 2 16 . . . 15 . . 9 . . Terminals 18 | . 2 1 6 . . . 6 . . 3 . . Track 1 | . . . 1 . . . . . . . . . Assimilate 1 | . . . . . . . 1 . . . . . Botnet 16 | . 2 1 5 . . . 5 . . 3 . . Fabricators 1 | . . . . . . . . . . 1 . . Siphon 1 | . . . . . . . . . . 1 . . Repair Stations . | . . . . . . . . . . . . . Recycling Units 3 | . 2 . . . . . 1 . . . . . Tunnel 3 | . 2 . . . . . 1 . . . . . Scanalyzers . | . . . . . . . . . . . . . Garrison Access . | . . . . . . . . . . . . . Data Cores Recovered 2 | . 1 . . . . . . . . 1 . . Used 1 | . . . . . . . . . . 1 . . Hacking Detections 30 | . 5 . 7 . . . 8 1 . 9 . . Full Trace Events 4 | . . . 1 . . . . . . 3 . . Feedback Events 1 | . . . . . . . . . . 1 . . Corruption 1 | . . . . . . . . . . 1 . . Feedback Blocked . | . . . . . . . . . . . . . Robot Schematics Acquired . | . . . . . . . . . . . . . Robots Built . | . . . . . . . . . . . . . Matter . | . . . . . . . . . . . . . Time . | . . . . . . . . . . . . . Total Robot Build Rating . | . . . . . . . . . . . . . Part Schematics Acquired 3 | . . . . . . . 1 . . 2 . . Parts Built 3 | . . . . . . . . . . 3 . . Matter 615 | . . . . . . . . . . 615 . . Time 312 | . . . . . . . . . . 312 . . Total Part Build Rating 10 | . . . . . . . . . . 10 . . Parts Repaired 2 | . . . . . . . . 1 . 1 . . Time 33 | . . . . . . . . 13 . 20 . . Parts Recycled . | . . . . . . . . . . . . . Recycled Matter . | . . . . . . . . . . . . . Retrieved Matter . | . . . . . . . . . . . . . Retrieved Components . | . . . . . . . . . . . . . Parts Scanalyzed . | . . . . . . . . . . . . . Part Schematics Acquired . | . . . . . . . . . . . . . Parts Damaged . | . . . . . . . . . . . . . Bothacking | -11 -10 -10 -9 -9 -9 -8 -8 -7 -7 -7 -7 -7 ------------ Run | Scr Mat Min Mat Min Exi Min Mat Fac Was Fac Low Low Used RIF Installer . | . . . . . . . . . . . . . Robots Hacked . | . . . . . . . . . . . . . Non-combat . | . . . . . . . . . . . . . Combat . | . . . . . . . . . . . . . Robot Hacks Applied . | . . . . . . . . . . . . . Relay Couplers Released . | . . . . . . . . . . . . . Robots Rewired . | . . . . . . . . . . . . . Allies Hacked 2 | . . . . . . . . . . 2 . . Hacks Repelled . | . . . . . . . . . . . . . Allies | -11 -10 -10 -9 -9 -9 -8 -8 -7 -7 -7 -7 -7 -------- Run | Scr Mat Min Mat Min Exi Min Mat Fac Was Fac Low Low Total Allies 27 | . . 6 . . . . 1 . 20 . . . Largest Group 20 | . . 5 5 . . . 1 . 20 20 . . Highest-Rated Group 517 | . . 108 108 . . . 10 . 517 517 . . Highest-Rated Ally 35 | . . 31 31 . . . 10 . 35 35 . . Total Orders . | . . . . . . . . . . . . . Ally Attacks 178 | . . 15 21 . . . . . . 142 . . Total Damage 2967 | . . 260 251 . . . . . . 2456 . . Kills 31 | . . 3 7 . . . . . . 21 . . Allies Corrupted . | . . . . . . . . . . . . . Allies Melted . | . . . . . . . . . . . . . Intel | -11 -10 -10 -9 -9 -9 -8 -8 -7 -7 -7 -7 -7 ------- Run | Scr Mat Min Mat Min Exi Min Mat Fac Was Fac Low Low Robot Analysis Total . | . . . . . . . . . . . . . Derelict Logs Recovered 3 | . . 2 . 1 . . . . . . . . Drone Launches . | . . . . . . . . . . . . . Drone Recoveries . | . . . . . . . . . . . . . Exploration | -11 -10 -10 -9 -9 -9 -8 -8 -7 -7 -7 -7 -7 ------------- Run | Scr Mat Min Mat Min Exi Min Mat Fac Was Fac Low Low Turns Passed 15319 | 68 1183 1242 2280 1727 242 1496 1677 535 915 2019 1091 844 Spaces Moved 7473 | 43 634 571 909 945 162 938 799 303 492 850 439 388 Core 14 | 14 . . . . . . . . . . . . Treads . | . . . . . . . . . . . . . Legs 7459 | 29 634 571 909 945 162 938 799 303 492 850 439 388 Wheels . | . . . . . . . . . . . . . Hover . | . . . . . . . . . . . . . Flight . | . . . . . . . . . . . . . Fastest Speed 50 | 50 120 210 210 150 150 150 150 160 160 160 183 183 Average Speed 172 | 114 147 210 216 163 150 150 154 160 160 173 183 189 Slowest Speed 280 | 150 210 210 240 210 150 150 160 160 160 280 215 240 Overloaded Moves . | . . . . . . . . . . . . . Propulsion Burnouts . | . . . . . . . . . . . . . Robots Hopped . | . . . . . . . . . . . . . Cave-ins Triggered 1 | . . . . 1 . . . . . . . . Exploration Rate (%) 64 | 3 95 96 91 99 54 100 64 11 93 26 49 52 Regions Visited 12 Branch Regions 6 Pre-discovered Areas 5 | . 2 1 . . 1 . 1 . . . . . Known Exits Taken 5 | . . . 1 . . 1 1 . . 1 1 . Unknown Exits Taken 5 | 1 1 1 . 1 1 . . . . . . . Scrap Searched 5 | . . 2 . . . 1 . . . . . 2 Spaces Dug 55 | . . . 8 11 . . 1 1 . 10 13 11 Terrain Destroyed 328 | . 28 . 19 57 . 91 25 1 . 54 40 13 Melee 27 | . . . . . . . 1 1 . 8 13 4 Projectile 15 | . . . . . . 1 . . . 5 . 9 AOE 286 | . 28 . 19 57 . 90 24 . . 41 27 . Actions | -11 -10 -10 -9 -9 -9 -8 -8 -7 -7 -7 -7 -7 --------- Run | Scr Mat Min Mat Min Exi Min Mat Fac Was Fac Low Low Total 9089 | 54 770 599 1091 1034 161 987 1042 346 616 1250 678 461 Wait 782 | 2 27 19 65 19 . 10 72 17 91 231 194 35 Move 7462 | 42 633 570 908 944 161 937 798 303 491 849 438 388 Hop . | . . . . . . . . . . . . . Pick Up 105 | 1 23 . 14 1 . 2 25 8 7 18 3 3 Fast Attach 33 | 7 1 . 4 . . . 4 4 3 6 1 3 Attach 46 | . 3 . 3 6 . 3 7 2 1 13 5 3 Detach 2 | . . . . . . . . . 2 . . . Swap 95 | . 12 . 12 14 . 7 17 6 3 16 5 3 Drop 73 | . 13 . 14 2 . 1 18 3 11 9 2 . Fire 434 | 2 58 10 71 48 . 26 97 . 7 85 14 16 Melee 54 | . . . . . . . 4 3 . 23 14 10 Ram . | . . . . . . . . . . . . . Kick 1 | . . . . . . 1 . . . . . . Crush . | . . . . . . . . . . . . . Escape Stasis . | . . . . . . . . . . . . . Rewire . | . . . . . . . . . . . . . Trap 2 | . . . . . . . . . . . 2 . Miscellaneous . | . . . . . . . . . . . . . Route ------- -11/Scrapyard -10/Materials (discovered 4 exits: *Mat x3 / *Min) -10/Mines (discovered 2 exits: *Mat x2) -9/Materials (discovered 6 exits: *Mat x3 / *Min x2 / *Sto) -9/Mines (discovered 3 exits: *Mat x2 / *Exi) -9/Exiles (discovered 2 exits: [*Min x2]) -8/Mines (discovered 2 exits: *Mat x2) -8/Materials (discovered 3 exits: *Fac x3) -7/Factory -7/Waste -7/Factory (discovered 3 exits: *Fac / *Low x2) -7/Lower Caves -7/Lower Caves History --------- Turn | Location | Event 41 | -11/Scrapyard | Discovered new exit (range 15) 69 | -11/Scrapyard | Entered Materials 174 | -10/Materials | Discovered new exit (range 13) 301 | -10/Materials | Discovered new exit (range 16) 307 | -10/Materials | Build established: Mutant 640 | -10/Materials | Discovered new exit (range 10) 844 | -10/Materials | Discovered new exit (range 10) 1252 | -10/Materials | Entered Mines 1662 | -10/Mines | Discovered new exit (range 9) 1692 | -10/Mines | Assisted by bots powering up and referring to "LRC-V3" 1859 | -10/Mines | Learned location of Zion (-7) 2338 | -10/Mines | Discovered new exit (range 11) 2345 | -10/Mines | Received a Mining Laser from a helpful Derelict 2347 | -10/Mines | Learned 4 Materials zone layouts 2494 | -10/Mines | Entered Materials 2494 | -9/Materials | Accompanied by 5 allies 2494 | -9/Materials | Evolved 2 slots: Utility x2 2495 | -9/Materials | Identified exit to Mines 2495 | -9/Materials | Identified exit to Storage 2495 | -9/Materials | Identified exit to Materials 2499 | -9/Materials | Led the pair of lost Derelicts to an unsafe place 2797 | -9/Materials | Build established: Hauler-Mutant 3135 | -9/Materials | Discovered exit to Mines (range 14) 3221 | -9/Materials | Discovered exit to Materials (range 18) 4130 | -9/Materials | Discovered exit to Materials (range 14) 4774 | -9/Materials | Entered Mines 4845 | -9/Mines | Destroyed YI-UF0 5081 | -9/Mines | Lost 3 parts (1p1n1w) 5237 | -9/Mines | Assembled infested the area 5242 | -9/Mines | Assisted by a Guerilla fighting off Assembled 5284 | -9/Mines | Crushed by falling debris 5782 | -9/Mines | Learned 2 Materials zone layouts 5801 | -9/Mines | Discovered exit to Materials (range 12) 5881 | -9/Mines | Deemed a non-threat by the Exiles lab entrance 5881 | -9/Mines | Discovered new exit (range 5) 6209 | -9/Mines | Discovered exit to Materials (range 12) 6501 | -9/Mines | Entered Exiles 6521 | -9/Exiles | Discovered new exit (range 15) 6539 | -9/Exiles | Met 8R-AWN 6563 | -9/Exiles | Met EX-HEX 6639 | -9/Exiles | Met EX-DEC 6731 | -9/Exiles | Discovered new exit (range 10) 6743 | -9/Exiles | Entered Mines 7443 | -8/Mines | Discovered exit to Materials (range 12) 7524 | -8/Mines | Discovered exit to Materials (range 5) 8053 | -8/Mines | Core integrity fell below 50% 8239 | -8/Mines | Entered Materials 8239 | -8/Materials | Evolved 2 slots: Propulsion x1, Utility x1 8240 | -8/Materials | Identified exit to Factory 8784 | -8/Materials | Discovered exit to Factory (range 9) 9830 | -8/Materials | Discovered exit to Factory (range 8) 9916 | -8/Materials | Entered Factory 9916 | -7/Factory | Evolved 2 slots: Utility x2 10039 | -7/Factory | Repaired Hcp. Storage Unit 10451 | -7/Factory | Sucked down chute 10451 | -7/Factory | Entered Waste 10452 | -7/Waste | Joined by Warlord forces that had cleared the area 10490 | -7/Waste | Found Damper Plating 10599 | -7/Waste | Found Damper Plating 10851 | -7/Waste | Discovered new exit (range 16) 11038 | -7/Waste | Found Broken Imp. Powered Armor 11360 | -7/Waste | Identified exit to Factory 11366 | -7/Waste | Entered Factory 11366 | -7/Factory | Accompanied by 20 allies 11492 | -7/Factory | Identified exit to Lower Caves 12001 | -7/Factory | Discovered new exit (range 18) 12037 | -7/Factory | Repaired Adv. Particle Charger 12102 | -7/Factory | Identified exit to Factory 12272 | -7/Factory | Fabricated Lrn. Sensor Array? 12406 | -7/Factory | Fabricated Hcp. Storage Unit (x1) 12561 | -7/Factory | Fabricated Cld. Plasma Cannon? 12850 | -7/Factory | Local fabrication network quarantined 12966 | -7/Factory | First assault squad dispatched 13079 | -7/Factory | Lost 3 parts (1n2w) 13188 | -7/Factory | System corruption reached 10% 13198 | -7/Factory | Core integrity fell below 50% 13238 | -7/Factory | Lost 10 parts (2p2n4u2w) 13385 | -7/Factory | Entered Lower Caves 13436 | -7/Lower Caves | Lost 4 parts (1p1n1u1w) 13528 | -7/Lower Caves | Spotted B-75 Beast 14416 | -7/Lower Caves | Attracted the attention of an 0b10 checkpoint 14416 | -7/Lower Caves | Core integrity fell below 20% 14472 | -7/Lower Caves | Discovered new exit (range 3) 14474 | -7/Lower Caves | Identified exit to Lower Caves 14476 | -7/Lower Caves | Entered another Lower Caves area 14633 | -7/Lower Caves | Lost 4 parts (1p1n2u) 14779 | -7/Lower Caves | Acquired the password to a Derelict Tinkerer's latest research 15320 | -7/Lower Caves | Destroyed by S-27 Virus with Autogun Last Messages --------------- 15039_ Lgt. Nuclear Core fries itself beyond repair. 15041_ VTOL Module fries itself beyond repair. 15043_ Autogun fries itself beyond repair. 15061_ System corrupted: Heat flow error (+223). 15067_ Searching scrap... 15067_ Found 34 Matter. 15067_ Found Lyr. Light Armor Plating. 15067_ Found Lrg. Matter Pod. 15067_ Found Mak. Sword. 15070_ Acquired Lyr. Light Armor Plating. 15100_ System corrupted: Component data lost. 15120_ System corrupted: Heat flow error (+149). 15145_ System corrupted: Substantial component data lost. 15160_ :L96TBBVVYR%QWJ&IW38CLMXGD:UD&R|& 15189_ System corrupted: Matter fused (-6). 15232_ System corrupted: Matter fused (-8). 15273_ FE JLFVR&O<4TGFO0 7W:0NB%MEZM 15308_ Imp. Titanium Leg destroyed. 15314_ Cld. Plasma Cannon destroyed. 15315_ ZB5HYPVRRZTBGQF2VHPWSX0LOKEIAHI:, Map ----- +----------------------------------------------------+ | ??# "" ##?????????????????????? | | ??# """" #####?????????????????? | | ??# ##### """ ## ####?????? ?????? | | ??## #???### " # #"####?? ????? | | ???## ##????# " # ### ???? | | ????# ##???# """" # ???? | | ????# ##??# ## " # % ??? | | ????## #??#### % ???? | | ?????# #?????###### #???? | | ????## ###????????## #???? | | ????# ###???????## ####?? | | ????### ##???????## ?? | | ??????#### ##???????# ?? | | ?????????# #???????# ## #??? | | ?????????## ## #???## ######### #??? | | ??????????###### ###### #?####### ##?? | | ???????????????? ### ##### ### #?? | | ???????????????? #?# #???## ## ### | | ???????????????? #?## ###??### # | | ????????????????? #??# #????# | | ????????????????? #??# #????# #### | | ????????????????? #### ##???# ###[%[ #?## | | ????????????# #???# #?# ### | | ???????????? ##ss #???# % ### ### | | ???????????? ########s ##??# ? #?# | | ????????????? #?????# @ #???# ##### | | ????????????? ????????# #??# #??# | | ??????????????????????# ####??## ########??# ## | | ??????????????????????###???????###??????????###?? | | ?????????????????????????????????????????????????? | | ?????????????????????????????????????????????????? | | ?????????????????????????????????????????????????? | | ?????????????????????????????????????????????????? | | ?????????????????????????????????????????????????? | | ?????????????????????????????????????????????????? | | ?????????????????????????????????????????????????? | | ?????????????????????????????????????????????????? | | ?????????????????????????????????????????????????? | | ?????????????????????????????????????????????????? | | ?????????????????????????????????????????????????? | | ?????????????????????????????????????????????????? | | ?????????????????????????????????????????????????? | | ?????????????????????????????????????????????????? | | ?????????????????????????????????????????????????? | | ?????????????????????????????????????????????????? | | ?????????????????????????????????????????????????? | | ?????????????????????????????????????????????????? | | ?????????????????????????????????????????????????? | | ?????????????????????????????????????????????????? | | ?????????????????????????????????????????????????? | +----------------------------------------------------+ Best States ------------- Heat Dissipation 75 Energy Generation 21 Energy Capacity 325 Matter Stores 300 Matter Capacity 300 Sight Range 16 Robot Scan Range 16 Terrain Scan Density 10 Armor Coverage 400 Evasion (%) 40 Targeting Accuracy 8 Offensive Hacking 20 Item Schematics ----------------- Hcp. Storage Unit | -8/Materials | Hacked Lrn. Sensor Array | -7/Factory | Hacked Cld. Plasma Cannon | -7/Factory | Hacked Robot Schematics ------------------ None Fabricated ------------ Lrn. Sensor Array | x1 | -7/Factory Hcp. Storage Unit | x1 | -7/Factory Cld. Plasma Cannon | x1 | -7/Factory Alien Tech Used ----------------- None Achievements -------------- None Challenges ------------ None Game ------ Seed AerolevMappingNullifier Manual? 0 Play Time 01:17:12 Cumulative 1020.5 hours Start 2020.03.17 @ 14:15:01 End 2020.03.17 @ 15:44:05 Sessions 1 Manual Loads 0 Difficulty Rogue Special Mode None Game No. 327 Rogue 327 Adventurer 0 Explorer 0 Win Type - Total 76 Types 14/8/34/5/1/2/12 Lore% 97 Gallery% 95 Achievement% 84 Wizard Run 0 Options --------- ASCII 0 Keyboard 0 Movement Numpad Keybinds 0 Fullscreen 1 Font 18/SmallcapsGlow Map View 76x50 Tactical HUD 1 Map Filters NONE Filters NONE Steam 1 RUN: 4d9b9b30-6d8c-4a06-b14d-b4b09a0b6cd2